bitfinex-derivatives/quotes_BTCF0:USTF0_20240902
["timestamp","ask_amount","ask_price","bid_price","bid_amount"]
[1725265293989,0.00025824,58108.0,58103.0,0.44457177]
[1725265294193,0.00025824,58108.0,58105.0,0.08377177]
[1725265294395,0.00025824,58108.0,58106.0,0.21493301]
[1725265294594,0.00025824,58108.0,58107.0,0.21493301]
[1725265294797,0.00025824,58108.0,58107.0,0.21496807]
[1725265294985,0.00025824,58108.0,58107.0,0.21496697]
[1725265295186,0.00025824,58108.0,58106.0,0.08380573]
[1725265295385,0.0004,58107.0,58103.0,0.67231266]
[1725265295708,0.0004,58107.0,58104.0,0.13116321]
[1725265295882,0.0004,58107.0,58105.0,0.13116321]
[1725265296087,0.0004,58107.0,58106.0,0.21503947]
[1725265296286,0.0004,58107.0,58106.0,0.21503959]
[1725265296493,0.31839755,58112.0,58106.0,0.08387626]
[1725265296798,0.31839755,58112.0,58098.0,0.57188]
[1725265296799,0.3608,58107.0,58104.0,0.08387626]
[1725265296993,0.060239,58104.0,58103.0,3.5e-07]
[1725265297183,0.3608,58104.0,58100.0,0.06716228]
[1725265297490,0.060243,58100.0,58094.0,0.08387626]
[1725265297685,0.3608,58099.0,58095.0,0.08387626]
[1725265298096,0.3608,58099.0,58096.0,0.0841345]
[1725265298400,0.42104,58104.0,58097.0,0.21506299]
[1725265298590,0.3608,58104.0,58103.0,0.06715396]
[1725265298892,0.06024,58103.0,58102.0,0.06715396]
[1725265299096,0.06024,58103.0,58102.0,0.05037934]
[1725265299402,0.57656,58103.0,58102.0,0.05037934]
[1725265299690,0.120484,58101.0,58100.0,3.4e-07]
[1725265299894,0.120484,58101.0,58096.0,0.0674122]
[1725265299895,0.060247,58097.0,58096.0,0.00025824]
[1725265300098,0.421047,58097.0,58096.0,0.00025824]
[1725265300299,0.937447,58097.0,58096.0,0.00025824]
[1725265300492,0.421047,58097.0,58096.0,0.00025824]
[1725265300691,0.937447,58097.0,58096.0,0.00025824]
[1725265301098,0.937847,58097.0,58096.0,0.00025824]
[1725265301708,1.208094,58097.0,58096.0,2.4e-07]
[1725265302001,0.5164,58096.0,58085.0,0.06723289]
[1725265302205,0.421458,58086.0,58084.0,0.06723289]
[1725265302398,0.421458,58086.0,58083.0,0.06723289]
[1725265302399,0.3612,58086.0,58083.0,0.06723289]
[1725265302590,0.060262,58082.0,58081.0,0.06723289]
[1725265302791,0.060662,58082.0,58080.0,0.06723289]
[1725265303001,0.3608,58081.0,58080.0,0.06723289]
[1725265303203,0.3612,58081.0,58080.0,0.06723289]
[1725265303544,0.3608,58081.0,58080.0,0.06723289]
[1725265303992,0.87732,58081.0,58080.0,0.06723289]
[1725265304399,0.060264,58080.0,58079.0,0.06723289]
[1725265304591,0.060664,58080.0,58079.0,0.06723289]
[1725265304897,0.060267,58078.0,58076.0,0.00025824]
[1725265305202,0.0004,58077.0,58076.0,0.00025824]
[1725265309098,0.3612,58077.0,58076.0,0.00025824]
[1725265310110,0.0004,58082.0,58076.0,0.51681824]
[1725265310447,0.0004,58082.0,58081.0,0.27722613]
[1725265310591,0.0004,58082.0,58081.0,0.33748913]
[1725265311192,0.00025824,58087.0,58082.0,0.060262]
[1725265311402,0.00025824,58087.0,58086.0,0.3608]
[1725265312204,0.00025824,58087.0,58079.0,0.42909676]
[1725265312499,0.00025824,58087.0,58074.0,0.65467626]
[1725265312500,0.36105824,58087.0,58075.0,0.12748576]
[1725265312703,0.060258,58086.0,58075.0,0.33748576]
[1725265312908,0.060258,58086.0,58076.0,0.06052624]
[1725265313200,0.36105824,58087.0,58076.0,0.06052624]
[1725265313201,0.00426894,58087.0,58080.0,0.060264]
[1725265313400,0.00426894,58087.0,58085.0,0.421059]
[1725265314005,0.00426894,58087.0,58081.0,0.21]
[1725265314208,0.0004,58082.0,58080.0,0.060264]
[1725265314405,0.0004,58081.0,58080.0,0.060264]
[1725265314606,0.0004,58082.0,58080.0,0.060264]
[1725265314903,0.0004,58082.0,58079.0,0.3608]
[1725265315112,0.0004,58080.0,58079.0,0.3608]
[1725265317409,0.0004,58080.0,58079.0,0.421065]
[1725265317599,0.0004,58082.0,58079.0,1.537585]
[1725265317796,0.00426894,58087.0,58086.0,0.060258]
[1725265317998,0.00025824,58087.0,58086.0,0.631058]
[1725265318199,0.00025824,58087.0,58086.0,1.87501276]
[1725265318200,2.4e-07,58087.0,58086.0,1.87501276]
[1725265318503,0.2749,58093.0,58092.0,0.060252]
[1725265318698,0.2749,58093.0,58092.0,0.631052]
[1725265318901,0.2749,58093.0,58092.0,1.747452]
[1725265319927,0.00025645,58098.0,58092.0,1.6872]
[1725265319996,0.00025645,58098.0,58097.0,0.5708]
[1725265323404,0.2749,58110.0,58097.0,1.68716]
[1725265323612,0.060251,58093.0,58089.0,0.00025824]
[1725265323916,0.27881897,58115.0,58092.0,0.21]
[1725265324106,0.27881897,58115.0,58091.0,0.3608]
[1725265324107,0.2319,58115.0,58113.0,0.060229]
[1725265324407,0.1889,58115.0,58114.0,0.3608]
[1725265324819,0.36945661,58134.0,58114.0,0.3608]
[1725265324820,0.00387005,58134.0,58114.0,0.3608]
[1725265325035,0.21,58136.0,58128.0,0.3608]
[1725265325312,0.060213,58129.0,58128.0,0.3608]
[1725265326607,0.576293,58129.0,58128.0,0.3608]
[1725265327406,1.176293,58129.0,58128.0,0.3608]
[1725265327915,1.18026776,58129.0,58128.0,0.3608]
[1725265328151,0.576334,58128.0,58106.0,0.3608]
[1725265328307,0.5708,58115.0,58106.0,0.3608]
[1725265328511,0.0716,58114.0,58106.0,0.3608]
[1725265328810,0.0716,58114.0,58099.0,0.3608]
[1725265328811,0.3608,58109.0,58099.0,0.3608]
[1725265329001,0.060243,58101.0,58099.0,0.3608]
[1725265329412,0.3608,58109.0,58099.0,0.3608]
[1725265329413,0.00025824,58106.0,58099.0,0.3608]
[1725265330001,0.21,58104.0,58094.0,0.00025824]
[1725265330311,0.060249,58095.0,58094.0,0.00025824]
[1725265330502,0.060249,58095.0,58077.0,0.3608]
[1725265330503,0.464049,58095.0,58077.0,0.3608]
[1725265330700,0.060261,58084.0,58077.0,0.3608]
[1725265330979,0.060262,58083.0,58077.0,0.3608]
[1725265331153,0.3608,58089.0,58077.0,0.3608]
[1725265331569,0.060261,58083.0,58077.0,0.36105824]
[1725265331819,0.21,58082.0,58077.0,0.36105824]
[1725265332117,0.21,58082.0,58077.0,0.00025824]
[1725265332415,0.060266,58078.0,58077.0,0.00025824]
[1725265333806,0.3608,58084.0,58077.0,0.00025824]
[1725265334008,0.14910539,58094.0,58080.0,0.3608]
[1725265334211,0.060259,58086.0,58080.0,0.3608]
[1725265334439,0.1451,58094.0,58080.0,0.3608]
[1725265334440,0.060252,58093.0,58080.0,0.3608]
[1725265334817,0.1451,58094.0,58080.0,0.3608]
[1725265335316,0.57105824,58089.0,58080.0,0.3608]
[1725265336013,0.060263,58081.0,58080.0,0.3608]
[1725265336211,0.060263,58081.0,58077.0,0.00025824]
[1725265336212,0.060266,58078.0,58077.0,0.00025824]
[1725265336613,0.576826,58078.0,58077.0,0.00025824]
[1725265337113,0.060272,58073.0,58065.0,0.3608]
[1725265337519,0.043,58074.0,58072.0,0.5708]
[1725265337716,0.060243,58101.0,58088.0,0.21]
[1725265337914,0.00856917,58104.0,58093.0,0.3608]
[1725265338116,0.060239,58105.0,58088.0,0.060255]
[1725265338304,0.00025824,58104.0,58093.0,0.00025824]
[1725265338505,0.06049824,58104.0,58093.0,0.00025824]
[1725265338710,0.060243,58100.0,58093.0,0.00025824]
[1725265339212,0.3608,58096.0,58093.0,0.00025824]
[1725265339415,0.060252,58092.0,58080.0,0.3608]
[1725265339714,0.07448,58099.0,58089.0,0.3608]
[1725265339925,0.0736,58099.0,58089.0,0.3608]
[1725265341111,0.00025824,58100.0,58089.0,0.3608]
[1725265341816,0.060245,58099.0,58089.0,0.3608]
[1725265342015,0.00025824,58100.0,58088.0,0.00025824]
[1725265342016,0.060248,58096.0,58088.0,0.00025824]
[1725265342321,0.21025824,58100.0,58088.0,0.00025824]
[1725265342322,0.21,58089.0,58088.0,0.00025824]
[1725265343311,0.060254,58090.0,58088.0,0.00025824]
[1725265344818,0.576694,58090.0,58088.0,0.00025824]
[1725265345012,0.51644,58089.0,58088.0,0.00025824]
[1725265345420,1.32644,58089.0,58088.0,0.00025824]
[1725265345619,1.32644,58089.0,58070.0,0.3608]
[1725265345620,0.97874,58089.0,58070.0,0.3608]
[1725265345924,0.3608,58080.0,58070.0,0.3608]
[1725265347167,0.060267,58078.0,58070.0,0.3608]
[1725265347524,0.3608,58080.0,58070.0,0.3608]
[1725265347525,0.060271,58074.0,58070.0,0.3608]
[1725265348727,0.3608,58080.0,58070.0,0.5708]
[1725265348728,0.421065,58080.0,58070.0,0.5708]
[1725265349223,0.060265,58079.0,58070.0,0.5708]
[1725265349418,0.060266,58078.0,58070.0,0.5708]
[1725265349823,0.06027,58075.0,58070.0,0.3608]
[1725265350151,0.3608,58080.0,58070.0,0.3608]
[1725265350818,0.3608,58080.0,58069.0,0.00025824]
[1725265350819,0.21,58078.0,58069.0,0.00025824]
[1725265351023,0.060275,58070.0,58069.0,0.00025824]
[1725265351416,1.176915,58070.0,58069.0,0.00025824]
[1725265351611,1.176915,58070.0,58052.0,0.3608]
[1725265351612,0.060286,58059.0,58052.0,0.3608]
[1725265352131,0.060281,58064.0,58055.0,0.21]
[1725265352314,0.3608,58070.0,58063.0,0.3608]
[1725265352519,0.3608,58070.0,58067.0,0.21]
[1725265352825,0.00025824,58072.0,58069.0,0.3612]
[1725265353024,0.00025824,58072.0,58071.0,0.0004]
[1725265354824,1.11685824,58072.0,58071.0,0.0004]
[1725265355236,1.11685824,58072.0,58063.0,0.3608]
[1725265355440,0.06028,58065.0,58063.0,0.3608]
[1725265355730,0.00065824,58072.0,58063.0,0.3608]
[1725265355731,0.060274,58071.0,58063.0,0.3608]
[1725265355928,0.060278,58067.0,58063.0,0.3608]
[1725265356282,0.060278,58067.0,58035.0,0.00402143]
[1725265356283,0.5708,58064.0,58048.0,0.3608]
[1725265356419,0.060287,58058.0,58048.0,0.3608]
[1725265356826,0.3608,58078.0,58057.0,0.3608]
[1725265357028,0.060261,58084.0,58071.0,0.3608]
[1725265357319,0.00025824,58077.0,58071.0,0.3608]
[1725265357523,0.00025824,58077.0,58071.0,1.4774]
[1725265357825,0.00025824,58077.0,58071.0,0.8774]
[1725265358619,0.00025824,58077.0,58071.0,1.4774]
[1725265358820,0.00025824,58077.0,58076.0,0.3608]
[1725265359220,0.00025824,58077.0,58076.0,0.87736]
[1725265360530,0.00025824,58077.0,58076.0,1.47776]
[1725265360732,0.21,58103.0,58083.0,0.21]
[1725265360733,0.060249,58095.0,58083.0,0.21]
[1725265361029,0.060249,58095.0,58094.0,0.0004]
[1725265361737,0.576649,58095.0,58094.0,0.0004]
[1725265361940,0.060249,58095.0,58094.0,0.0004]
[1725265362821,1.176649,58095.0,58094.0,0.0004]
[1725265364435,0.060254,58090.0,58089.0,0.00025824]
[1725265364638,0.060254,58090.0,58076.0,0.3608]
[1725265364639,0.060267,58078.0,58076.0,0.3608]
[1725265364841,0.21,58079.0,58068.0,0.3608]
[1725265365027,0.060272,58073.0,58068.0,0.3608]
[1725265365234,0.060273,58072.0,58068.0,0.3608]
[1725265366140,0.00025824,58076.0,58068.0,0.3608]
[1725265367035,0.060275,58070.0,58068.0,0.3608]
[1725265367533,0.00025824,58076.0,58068.0,0.3608]
[1725265367937,0.00025824,58076.0,58075.0,0.3608]
[1725265371431,0.00025824,58076.0,58075.0,0.87736]
[1725265372041,0.00065824,58076.0,58075.0,0.87736]
[1725265372841,0.5708,58104.0,58075.0,1.47736]
[1725265373038,0.060649,58095.0,58094.0,0.0004]
[1725265373244,0.0004,58095.0,58094.0,0.0004]
[1725265373835,0.0004,58095.0,58094.0,0.3612]
[1725265374738,0.0004,58095.0,58094.0,0.0004]
[1725265375642,0.3612,58095.0,58094.0,0.0004]
[1725265376239,0.0004,58095.0,58094.0,0.0004]
[1725265376447,0.00433843,58095.0,58094.0,0.0004]
[1725265376648,0.0004,58095.0,58094.0,0.0004]
[1725265377347,0.3612,58095.0,58094.0,0.0004]
[1725265377852,0.0004,58095.0,58094.0,0.0004]
[1725265380745,0.0004,58095.0,58094.0,0.93785]
[1725265380951,0.0765,58123.0,58099.0,0.17]
[1725265381144,0.060222,58121.0,58116.0,0.17]
[1725265381350,0.0765,58123.0,58116.0,0.5308]
[1725265381738,0.0765,58123.0,58105.0,0.3608]
[1725265381739,0.0765,58123.0,58111.0,0.5308]
[1725265381943,0.3608,58127.0,58115.0,0.17]
[1725265382249,0.3608,58127.0,58116.0,0.3608]
[1725265382452,0.00025824,58123.0,58116.0,0.3608]
[1725265382759,0.00025824,58123.0,58121.0,0.3608]
[1725265383150,0.17,58137.0,58121.0,0.3608]
[1725265383151,0.0602,58143.0,58124.0,0.060218]
[1725265383457,0.060201,58142.0,58137.0,0.3608]
[1725265383757,0.0792,58150.0,58137.0,0.3608]
[1725265383758,0.230193,58149.0,58137.0,0.3608]
[1725265383946,0.060193,58149.0,58137.0,0.3608]
[1725265384141,0.06045102,58149.0,58137.0,0.36105802]
[1725265384354,0.00025802,58149.0,58137.0,0.36105802]
[1725265384695,0.060196,58146.0,58137.0,0.36105802]
[1725265385646,0.060196,58146.0,58142.0,0.3608]
[1725265386350,0.00025802,58149.0,58142.0,0.3608]
[1725265386960,0.060204,58139.0,58137.0,0.00025802]
[1725265387255,0.5708,58138.0,58112.0,0.5708]
[1725265387450,0.3608,58126.0,58112.0,0.3608]
[1725265387857,0.060221,58122.0,58112.0,0.3608]
[1725265388069,0.060222,58121.0,58112.0,0.3608]
[1725265388359,0.00025802,58123.0,58111.0,0.00025802]
[1725265388360,0.3608,58114.0,58111.0,0.00025802]
[1725265388564,0.421031,58112.0,58111.0,0.00025802]
[1725265390055,0.060231,58112.0,58111.0,0.00025802]
[1725265390356,1.386471,58112.0,58111.0,0.00025802]
[1725265390666,0.060237,58107.0,58100.0,0.3608]
[1725265391069,0.3608,58116.0,58100.0,0.3608]
[1725265391364,0.43343491,58116.0,58115.0,0.0004]
[1725265391748,0.94963491,58116.0,58115.0,0.0004]
[1725265391956,0.00025802,58121.0,58115.0,0.0004]
[1725265392165,0.00025802,58121.0,58120.0,0.0004]
[1725265398868,0.44048,58130.0,58120.0,0.0004]
[1725265398869,0.00088,58130.0,58120.0,1.47736]
[1725265399173,0.3608,58145.0,58129.0,0.5712]
[1725265399356,0.3608,58145.0,58134.0,0.3608]
[1725265399557,0.3608,58145.0,58144.0,0.0004]
[1725265399558,0.420997,58145.0,58144.0,0.0004]
[1725265400058,0.060198,58144.0,58139.0,0.00025802]
[1725265403711,0.060199,58143.0,58139.0,0.00025802]
[1725265403853,0.060202,58140.0,58139.0,0.00025802]
[1725265404056,0.421002,58140.0,58139.0,0.00025802]
[1725265404570,0.421002,58140.0,58110.0,0.0874]
[1725265404571,0.21,58132.0,58110.0,0.0874]
[1725265404868,0.3608,58119.0,58109.0,0.21]
[1725265405367,0.3608,58119.0,58114.0,0.21]
[1725265405663,0.00025802,58120.0,58118.0,0.3608]
[1725265405861,0.00025802,58120.0,58119.0,0.2974]
[1725265406075,0.00025802,58120.0,58119.0,0.7736]
[1725265406389,0.00025802,58120.0,58119.0,1.3736]
[1725265407471,0.00025802,58120.0,58119.0,0.5162]
[1725265407672,0.36105802,58120.0,58110.0,0.3608]
[1725265408056,0.36962902,58120.0,58110.0,0.3608]
[1725265408371,0.36962902,58120.0,58108.0,0.00025792]
[1725265408372,0.17,58111.0,58108.0,0.00025792]
[1725265408562,0.3608,58109.0,58108.0,0.00025792]
[1725265409571,0.3608,58109.0,58093.0,0.3608]
[1725265409572,0.060242,58102.0,58098.0,0.3608]
[1725265410168,0.060242,58102.0,58087.0,0.17]
[1725265410169,0.17,58099.0,58086.0,0.3608]
[1725265410464,0.060249,58095.0,58086.0,0.3608]
[1725265410663,0.060252,58093.0,58086.0,0.3608]
[1725265410870,0.17,58090.0,58086.0,0.3608]
[1725265411058,0.230254,58090.0,58080.0,0.3608]
[1725265411257,0.229254,58090.0,58080.0,0.3608]
[1725265411766,0.060256,58088.0,58073.0,0.2544]
[1725265411967,0.060256,58088.0,58086.0,0.00074176]
[1725265412366,0.0004,58087.0,58086.0,0.00074176]
[1725265413675,0.0004,58087.0,58081.0,0.00025824]
[1725265413864,0.0004,58082.0,58081.0,0.00025824]
[1725265414170,0.1694,58086.0,58081.0,0.00025824]
[1725265414472,0.060258,58086.0,58085.0,0.0004]
[1725265414670,0.230258,58086.0,58085.0,0.0004]
[1725265415766,0.756738,58086.0,58085.0,0.0004]
[1725265416072,1.356738,58086.0,58085.0,0.0004]
[1725265417089,1.360738,58086.0,58085.0,0.0014]
[1725265417272,0.244258,58086.0,58085.0,0.0014]
[1725265420573,0.254258,58086.0,58085.0,0.0014]
[1725265421070,0.51648,58085.0,58061.0,0.3608]
[1725265421262,0.0004,58062.0,58061.0,0.3608]
[1725265421465,0.06028,58065.0,58061.0,0.3608]
[1725265422161,0.17,58068.0,58055.0,0.36188]
[1725265422364,0.230277,58068.0,58067.0,0.0004]
[1725265424077,0.241277,58068.0,58067.0,0.0014]
[1725265425076,0.375277,58068.0,58067.0,0.0014]
[1725265425473,0.060286,58060.0,58050.0,0.79136]
[1725265426072,0.17092,58062.0,58050.0,0.3608]
[1725265426073,0.17,58053.0,58050.0,0.3608]
[1725265426378,0.060296,58050.0,58041.0,0.0852]
[1725265426568,0.060296,58050.0,58040.0,0.3608]
[1725265426772,0.17,58050.0,58040.0,0.3608]
[1725265426972,0.169,58050.0,58040.0,0.3608]
[1725265427788,0.17,58050.0,58040.0,0.3608]
[1725265428078,0.17,58050.0,58040.0,0.3618]
[1725265428694,0.001,58050.0,58046.0,0.3608]
[1725265428990,0.0004,58047.0,58046.0,0.3608]
[1725265429477,0.0004,58047.0,58046.0,1.47764]
[1725265429673,0.0004,58047.0,58046.0,1.64764]
[1725265429874,0.0004,58047.0,58046.0,1.47764]
[1725265430079,0.0004,58047.0,58046.0,0.87764]
[1725265430386,0.0004,58047.0,58040.0,0.421105]
[1725265430575,0.0114,58047.0,58046.0,0.001]
[1725265430806,0.011,58047.0,58046.0,0.001]
[1725265431379,0.011,58047.0,58046.0,1.47864]
[1725265431585,0.011,58047.0,58046.0,1.64864]
[1725265431882,0.01,58050.0,58046.0,1.64864]
[1725265431883,0.01,58050.0,58047.0,0.060298]
[1725265432081,0.00025824,58057.0,58047.0,0.746198]
[1725265432272,0.00025824,58057.0,58052.0,0.3608]
[1725265432470,0.00025824,58057.0,58056.0,0.0004]
[1725265432678,0.00025824,58057.0,58052.0,0.3608]
[1725265432881,0.0004,58053.0,58052.0,0.3608]
[1725265433284,0.0004,58053.0,58052.0,0.51676]
[1725265433983,0.0004,58053.0,58052.0,0.001]
[1725265434684,0.0004,58053.0,58049.0,0.0004]
[1725265434893,0.0074,58053.0,58048.0,0.17364]
[1725265435179,0.0004,58050.0,58048.0,0.17364]
[1725265435582,0.0004,58050.0,58048.0,0.69044]
[1725265436501,0.007,58053.0,58052.0,0.0006]
[1725265436679,0.007,58053.0,58052.0,0.87816]
[1725265437797,0.005,58050.0,58048.0,0.17364]
[1725265438421,0.005,58050.0,58045.0,0.1103183]
[1725265438422,0.005,58050.0,58045.0,0.0500173]
[1725265438480,0.005,58050.0,58038.0,0.060308]
[1725265438481,0.005,58050.0,58044.0,0.0500173]
[1725265438677,0.005,58050.0,58043.0,0.0500173]
[1725265439182,0.005,58050.0,58039.0,0.42801244]
[1725265439183,0.005,58050.0,58045.0,0.0500173]
[1725265439594,0.17,58055.0,58045.0,0.0500173]
[1725265439885,0.059295,58050.0,58044.0,0.0500173]
[1725265440276,0.059295,58050.0,58045.0,0.0500173]
[1725265441083,0.064295,58050.0,58045.0,0.0500173]
[1725265442288,0.005,58050.0,58048.0,0.0500173]
[1725265442790,0.421973,58053.0,58048.0,0.0500173]
[1725265442983,0.421093,58053.0,58048.0,0.0500173]
[1725265443186,0.421093,58053.0,58052.0,0.0004]
[1725265444592,0.421093,58053.0,58052.0,0.0014]
[1725265446488,0.3608,58053.0,58052.0,0.0014]
[1725265447285,0.421092,58053.0,58052.0,0.0014]
[1725265448688,0.421092,58053.0,58047.0,0.0672684]
[1725265448997,0.421092,58053.0,58039.0,0.17]
[1725265448998,0.0004,58048.0,58046.0,0.0672684]
[1725265449193,0.0004,58048.0,58047.0,0.0672684]
[1725265449398,0.3608,58053.0,58047.0,0.0672684]
[1725265449706,0.3608,58048.0,58047.0,0.0672684]
[1725265449882,0.3608,58048.0,58046.0,0.0672684]
[1725265450089,0.0004,58047.0,58046.0,0.0672684]
[1725265450292,0.0004,58047.0,58041.0,0.0840855]
[1725265450487,0.3608,58048.0,58047.0,0.0006]
[1725265450688,0.3608,58048.0,58047.0,0.06797082]
[1725265451103,0.3608,58048.0,58047.0,0.0006]
[1725265451391,0.007,58047.0,58046.0,0.001]
[1725265452993,0.3608,58048.0,58043.0,0.0840855]
[1725265453190,0.37344982,58048.0,58047.0,0.0014]
[1725265453896,0.36544982,58048.0,58047.0,0.0004]
[1725265455688,0.01264982,58048.0,58047.0,1.67060314]
[1725265455889,0.3608,58064.0,58048.0,0.060297]
[1725265456093,0.3608,58064.0,58052.0,0.10115817]
[1725265456305,0.3608,58054.0,58052.0,0.08429213]
[1725265456602,0.421091,58054.0,58048.0,0.08429213]
[1725265456806,0.421091,58054.0,58053.0,0.06744905]
[1725265456996,0.421091,58054.0,58052.0,0.06744905]
[1725265457198,0.0004,58053.0,58052.0,0.06744905]
[1725265457701,0.0004,58053.0,58051.0,0.06744905]
[1725265457893,0.0004,58052.0,58051.0,0.06744905]
[1725265458095,0.0004,58052.0,58048.0,0.001]
[1725265458395,0.3618,58054.0,58048.0,0.001]
[1725265458396,0.5012,58049.0,58048.0,0.001]
[1725265459099,0.3602,58049.0,58044.0,0.08429213]
[1725265459299,0.0004,58045.0,58044.0,0.08429213]
[1725265459504,0.0004,58045.0,58043.0,0.08429213]
[1725265459800,0.0004,58044.0,58043.0,0.08429213]
[1725265460004,0.3618,58049.0,58048.0,0.0006]
[1725265460313,0.3618,58049.0,58048.0,0.001]
[1725265460805,0.3618,58049.0,58048.0,0.141]
[1725265461305,0.3598,58049.0,58048.0,0.0004]
[1725265462329,0.3598,58049.0,58048.0,0.5172]
[1725265462682,0.3608,58068.0,58055.0,0.06029]
[1725265462813,0.3608,58068.0,58061.0,0.060284]
[1725265463100,0.3608,58068.0,58066.0,0.14]
[1725265463399,0.00651271,58078.0,58066.0,0.200278]
[1725265463609,0.3608,58068.0,58062.0,0.31996]
[1725265463796,0.3608,58068.0,58065.0,0.06728007]
[1725265464302,0.3608,58068.0,58062.0,0.44876307]
[1725265464607,0.0004,58063.0,58062.0,0.31996]
[1725265464991,0.0004,58063.0,58062.0,1.43664]
[1725265465966,0.0004,58063.0,58059.0,0.06753831]
[1725265465967,0.00025824,58071.0,58066.0,0.0006]
[1725265466200,0.3608,58067.0,58066.0,0.0006]
[1725265466411,0.00025824,58071.0,58067.0,0.060277]
[1725265466704,0.00025824,58071.0,58070.0,0.5012]
[1725265467600,0.00025824,58071.0,58070.0,0.1404]
[1725265467825,0.00025824,58071.0,58070.0,0.0004]
[1725265468728,1.22685824,58071.0,58070.0,0.0004]
[1725265469002,0.060275,58070.0,58058.0,0.3608]
[1725265469303,0.560082,58063.0,58058.0,0.3608]
[1725265469506,0.060284,58061.0,58056.0,0.0004]
[1725265470007,0.17,58060.0,58056.0,0.0004]
[1725265470305,0.17,58060.0,58059.0,0.00125824]
[1725265472006,0.23,58060.0,58059.0,0.00125824]
[1725265472308,0.2304,58060.0,58059.0,0.00125824]
[1725265472506,0.2354,58060.0,58059.0,0.00125824]
[1725265474212,0.1754,58060.0,58059.0,0.00125824]
[1725265476009,0.00088,58063.0,58059.0,1.11797824]
[1725265476203,0.00448413,58074.0,58062.0,0.591483]
[1725265476602,0.00448413,58074.0,58070.0,0.0004]
[1725265476804,0.36528413,58074.0,58070.0,0.17588]
[1725265478022,0.53528413,58074.0,58070.0,0.17588]
[1725265478207,0.53624414,58074.0,58070.0,0.17588]
[1725265478807,0.53624414,58074.0,58070.0,0.17688]
[1725265479511,0.36176001,58074.0,58070.0,0.17688]
[1725265479717,0.3608,58074.0,58070.0,0.17688]
[1725265483116,0.3608,58074.0,58070.0,0.17588]
[1725265483420,0.3608,58074.0,58070.0,0.17688]
[1725265486915,0.00029921,58071.0,58070.0,0.17688]
[1725265488224,0.00029921,58071.0,58070.0,0.237155]
[1725265488416,0.00029921,58071.0,58070.0,0.236155]
[1725265489223,0.00029921,58071.0,58070.0,0.237155]
[1725265490037,4.097e-05,58071.0,58070.0,0.236155]
[1725265490333,0.14,58082.0,58070.0,0.236155]
[1725265490334,0.3608,58090.0,58071.0,0.5166]
[1725265490628,0.3608,58090.0,58081.0,0.3608]
[1725265493113,0.3608,58090.0,58081.0,0.3618]
[1725265494529,0.3608,58090.0,58084.0,0.14]
[1725265494715,0.3608,58090.0,58085.0,0.060259]
[1725265495433,0.3608,58090.0,58086.0,0.060258]
[1725265495732,0.3608,58090.0,58088.0,0.14]
[1725265496118,0.3608,58090.0,58084.0,0.141]
[1725265496316,0.3608,58090.0,58084.0,0.001]
[1725265497136,0.3608,58090.0,58085.0,0.17584]
[1725265497724,0.3608,58087.0,58084.0,0.001]
[1725265498119,0.3608,58087.0,58083.0,0.1758]
[1725265498320,0.3608,58087.0,58086.0,0.001]
[1725265499418,0.3608,58087.0,58084.0,0.001]
[1725265499837,0.3608,58087.0,58086.0,0.14]
[1725265500036,0.3608,58087.0,58086.0,0.200258]
[1725265500230,0.00025824,58091.0,58088.0,0.060256]
[1725265500427,0.00025824,58091.0,58090.0,0.200254]
[1725265500630,0.00025824,58091.0,58090.0,0.200654]
[1725265500833,0.00025824,58091.0,58090.0,1.317094]
[1725265501034,0.3608,58112.0,58102.0,0.14]
[1725265501338,0.36535818,58112.0,58111.0,0.0004]
[1725265502175,0.50535818,58112.0,58111.0,0.0004]
[1725265502944,0.36535818,58112.0,58111.0,0.0004]
[1725265503445,0.36535818,58112.0,58111.0,0.0014]
[1725265503832,0.3608,58112.0,58111.0,0.0014]
[1725265506026,0.3608,58112.0,58111.0,0.0004]
[1725265508842,0.00454534,58115.0,58111.0,0.0004]
[1725265509036,0.00025824,58117.0,58115.0,0.060227]
[1725265509343,0.00025824,58117.0,58114.0,0.0004]
[1725265509641,0.00484122,58117.0,58114.0,0.0004]
[1725265509841,0.00025824,58117.0,58114.0,0.0004]
[1725265510343,0.3608,58115.0,58114.0,0.0004]
[1725265515935,0.3608,58115.0,58114.0,0.0014]
[1725265516544,0.3608,58115.0,58114.0,0.0004]
[1725265518152,0.3608,58115.0,58114.0,0.0014]
[1725265518740,0.3608,58115.0,58114.0,0.061629]
[1725265518940,0.00025824,58117.0,58116.0,0.060227]
[1725265519145,0.00025824,58117.0,58116.0,0.200627]
[1725265519450,0.00025824,58117.0,58116.0,0.0004]
[1725265521548,0.00025824,58117.0,58116.0,0.0014]
[1725265522247,1.11645824,58117.0,58114.0,0.0004]
[1725265522459,0.4998,58115.0,58096.0,0.4645]
[1725265522642,0.4998,58115.0,58105.0,0.1718]
[1725265523155,0.4988,58115.0,58105.0,0.1718]
[1725265524948,0.4998,58115.0,58105.0,0.1718]
[1725265525146,0.4998,58115.0,58100.0,0.31184]
[1725265525346,0.3608,58108.0,58100.0,0.31184]
[1725265525551,0.3608,58108.0,58100.0,0.17184]
[1725265525749,0.3608,58108.0,58106.0,0.00125824]
[1725265526146,0.060242,58102.0,58093.0,0.06728007]
[1725265526362,0.3608,58094.0,58090.0,0.00132]
[1725265526546,0.3598,58094.0,58090.0,0.00132]
[1725265526747,0.3598,58094.0,58083.0,0.42808007]
[1725265527094,0.3608,58088.0,58083.0,0.42808007]
[1725265527161,0.3608,58088.0,58080.0,0.17184]
[1725265527356,0.3608,58088.0,58080.0,0.17209824]
[1725265527951,0.3598,58088.0,58083.0,0.14]
[1725265529258,0.3598,58088.0,58080.0,0.17209824]
[1725265529554,0.3638,58088.0,58080.0,0.17209824]
[1725265530055,0.3638,58088.0,58080.0,0.00025824]